bitfinex-derivatives/quotes_ETHF0:USTF0_20240930
["timestamp","ask_amount","ask_price","bid_price","bid_amount"]
[1727710867799,3.33383,2605.5,2605.4,0.38383]
[1727710868402,0.3838,2605.7,2605.6,0.3838]
[1727710868898,0.95943,2605.9,2605.6,3.8376]
[1727710868899,0.38377,2605.9,2605.6,3.8376]
[1727710869101,2.95,2606.2,2605.5,3.2078]
[1727710869300,0.38376,2605.9,2605.8,0.38377]
[1727710869501,3.90931,2606.2,2605.8,0.38377]
[1727710869805,0.38376,2605.9,2605.7,0.38377]
[1727710870401,0.38376,2605.9,2605.8,0.38377]
[1727710870603,0.95934,2606.1,2605.2,5.16522317]
[1727710870799,2.95,2606.2,2605.5,3.2078]
[1727710870800,0.38375,2606.0,2605.5,3.2078]
[1727710870998,0.38375,2606.0,2605.8,0.38376]
[1727710871602,2.95,2606.2,2605.5,4.16735]
[1727710871912,0.38375,2606.0,2605.9,0.38376]
[1727710872104,2.95,2606.2,2606.0,0.38373]
[1727710872403,0.38374,2606.1,2605.5,5.16511317]
[1727710872607,2.95,2606.2,2605.6,0.95951]
[1727710872804,0.38373,2606.1,2605.9,0.38375]
[1727710873109,0.38373,2606.1,2605.6,1.95726317]
[1727710873312,0.38373,2606.1,2606.0,0.38374]
[1727710874113,3.33372,2606.2,2606.1,0.38373]
[1727710874302,3.33372,2606.2,2605.7,0.95947]
[1727710874504,0.38372,2606.2,2606.0,0.38374]
[1727710874704,3.59149,2606.4,2606.3,0.3837]
[1727710874902,0.9591,2606.8,2606.6,0.38364]
[1727710874903,6.54144,2606.8,2606.6,0.38364]
[1727710875098,6.54144,2606.8,2606.3,1.95701317]
[1727710875099,0.38363,2606.8,2606.3,1.95701317]
[1727710875410,0.38366,2606.6,2606.5,0.38367]
[1727710875605,2.95,2606.8,2606.7,0.38364]
[1727710875812,3.2078,2607.1,2606.3,1.95701317]
[1727710875813,3.2078,2607.1,2606.5,4.16698]
[1727710876004,5.13087,2607.4,2607.1,0.38358]
[1727710876005,0.38356,2607.3,2607.1,0.38358]
[1727710876199,2.95,2607.5,2606.9,0.38361]
[1727710876510,2.95,2607.5,2607.4,0.38354]
[1727710876810,2.95,2607.9,2607.1,3.2078]
[1727710877108,3.90894,2607.2,2606.8,0.99776317]
[1727710877305,0.38359,2607.1,2606.9,0.38361]
[1727710877704,2.95,2607.2,2607.0,0.38359]
[1727710877909,3.33357,2607.2,2607.0,0.38359]
[1727710878112,0.38356,2607.3,2607.1,0.38358]
[1727710878308,0.38354,2607.4,2607.2,0.38356]
[1727710878513,2.95,2607.6,2606.8,4.16687]
[1727710878811,0.38354,2607.4,2607.2,0.38356]
[1727710879020,6.1578,2607.6,2606.8,3.2078]
[1727710879209,0.38358,2607.2,2607.0,0.38358]
[1727710879915,0.38358,2607.1,2607.0,4.21959]
[1727710880207,6.1578,2607.6,2606.8,3.2078]
[1727710880208,7.1166,2607.6,2606.8,3.2078]
[1727710880410,0.38355,2607.4,2606.9,3.2078]
[1727710880603,0.38355,2607.4,2607.2,0.38356]
[1727710880804,0.38355,2607.4,2606.9,3.2078]
[1727710880805,0.38355,2607.4,2607.3,0.38355]
[1727710881004,0.38355,2607.4,2607.2,0.38356]
[1727710881509,6.1578,2607.6,2606.9,3.2078]
[1727710881816,0.38355,2607.4,2607.2,0.38357]
[1727710882813,1.34234,2607.5,2607.1,0.38358]
[1727710883009,0.38356,2607.3,2606.9,3.2078]
[1727710883218,0.38356,2607.3,2607.1,0.38358]
[1727710883408,0.95882,2607.5,2606.9,3.2078]
[1727710883603,0.38353,2607.5,2607.3,0.38354]
[1727710883807,0.38353,2607.5,2606.9,3.2078]
[1727710884018,0.38353,2607.5,2607.3,0.38354]
[1727710884204,6.1578,2607.9,2607.1,0.95896]
[1727710884409,0.38348,2607.8,2607.7,0.38349]
[1727710884712,2.95,2608.2,2607.3,0.95889]
[1727710884916,0.38345,2608.0,2607.9,0.38345]
[1727710885213,0.38345,2608.0,2606.8,3.2078]
[1727710885214,0.95883,2607.5,2606.8,3.2078]
[1727710885520,0.38357,2607.3,2607.1,0.38358]
[1727710885816,0.38355,2607.4,2606.9,0.95904]
[1727710886003,2.95,2607.6,2606.5,3.2078]
[1727710886201,2.95,2607.6,2606.6,0.38365]
[1727710886202,0.38364,2606.8,2606.6,0.38365]
[1727710886408,0.38363,2606.8,2606.6,0.38365]
[1727710886808,0.38363,2606.8,2606.3,3.2078]
[1727710886809,0.38365,2606.7,2606.5,0.38366]
[1727710887010,0.38366,2606.6,2606.1,0.95933]
[1727710887218,2.95,2606.9,2606.1,0.95933]
[1727710887413,2.95,2606.9,2606.5,0.38367]
[1727710887414,0.38365,2606.7,2606.5,0.38367]
[1727710887611,2.95,2606.9,2606.0,3.2078]
[1727710887809,3.2078,2606.8,2605.6,3.2078]
[1727710888123,3.2078,2606.8,2605.9,3.2078]
[1727710888306,2.95,2606.9,2606.0,3.2078]
[1727710888608,0.38362,2606.9,2606.7,0.38364]
[1727710888806,0.38362,2606.9,2606.3,3.2078]
[1727710888807,0.959,2607.0,2606.6,0.38366]
[1727710889009,4.1668,2607.0,2606.0,3.2078]
[1727710889317,0.38368,2606.5,2606.3,0.38369]
[1727710889509,3.90905,2606.9,2606.0,3.2078]
[1727710889809,3.90905,2606.9,2605.9,0.95938]
[1727710889810,0.38362,2606.9,2606.3,4.16704]
[1727710890008,3.90895,2607.2,2606.8,0.38363]
[1727710890210,0.38361,2607.0,2606.3,4.16704]
[1727710890410,2.95,2607.2,2606.4,0.9592]
[1727710890606,0.38356,2607.3,2606.7,0.95911]
[1727710890820,0.38356,2607.3,2607.1,0.38358]
[1727710891007,0.38356,2607.3,2606.7,0.95911]
[1727710891008,3.2078,2607.5,2606.9,3.2078]
[1727710891208,0.38353,2607.5,2607.3,0.38354]
[1727710891414,0.95873,2607.8,2606.9,4.16682]
[1727710891617,0.95873,2607.8,2607.4,0.38354]
[1727710891810,0.95873,2607.8,2607.5,0.38352]
[1727710891811,0.3835,2607.7,2607.5,0.38352]
[1727710892006,0.38352,2607.6,2607.2,0.38357]
[1727710892219,0.38352,2607.6,2607.4,0.38353]
[1727710892416,0.95873,2607.8,2607.5,0.38352]
[1727710892720,0.38352,2607.6,2607.5,0.38352]
[1727710893108,2.95,2607.9,2607.2,4.16671]
[1727710893319,2.95,2607.9,2607.3,0.38354]
[1727710893320,0.95871,2607.8,2607.3,0.38354]
[1727710893517,0.38355,2607.3,2607.0,0.38359]
[1727710893813,0.95887,2607.4,2607.0,0.38359]
[1727710893814,0.38357,2607.2,2607.0,0.38359]
[1727710894013,2.95,2607.2,2606.4,12.5136146]
[1727710894210,0.38366,2606.6,2606.5,0.38367]
[1727710894520,3.2078,2607.1,2605.9,0.95939]
[1727710894521,0.38362,2606.9,2606.4,0.95922]
[1727710894717,0.38357,2607.3,2607.1,0.38357]
[1727710894918,0.95888,2607.4,2606.8,0.95907]
[1727710895108,0.38356,2607.3,2607.2,0.38356]
[1727710895313,0.38354,2607.4,2607.3,0.38355]
[1727710895815,0.95878,2607.6,2607.3,9.8352]
[1727710895816,0.38351,2607.6,2607.3,9.8352]
[1727710896021,0.38351,2607.7,2607.2,4.16672]
[1727710896213,0.38351,2607.7,2607.5,0.38351]
[1727710896414,0.38349,2607.7,2607.4,0.38353]
[1727710896609,2.95,2607.9,2607.3,0.38355]
[1727710896820,0.38356,2607.3,2606.9,3.2078]
[1727710897013,0.38356,2607.3,2607.2,0.38357]
[1727710897414,4.16656,2607.7,2606.9,3.2078]
[1727710897923,0.38357,2607.2,2607.1,0.38357]
[1727710898218,0.38355,2607.4,2607.2,0.38355]
[1727710898410,0.95876,2607.7,2607.4,0.38353]
[1727710898615,0.38352,2607.6,2607.4,0.38353]
[1727710899015,0.95876,2607.7,2607.4,0.38353]
[1727710899317,3.9087,2607.9,2607.5,0.38352]
[1727710899517,3.9087,2607.9,2607.0,0.959]
[1727710899518,0.95871,2607.8,2607.4,0.38353]
[1727710899722,0.38353,2607.5,2607.4,0.38353]
[1727710900020,0.38348,2607.8,2607.3,0.95889]
[1727710900224,0.38349,2607.8,2607.3,1.34244]
[1727710900417,0.38347,2607.9,2607.8,0.38348]
[1727710900618,0.38347,2607.9,2607.2,3.2078]
[1727710900619,6.1578,2608.3,2607.2,3.2078]
[1727710900923,0.38346,2608.0,2607.5,4.16661]
[1727710901144,3.2078,2608.3,2607.8,0.38347]
[1727710901145,0.38347,2607.9,2607.8,0.38347]
[1727710901318,0.38346,2608.0,2607.9,0.38346]
[1727710901826,0.38342,2608.2,2608.0,0.38344]
[1727710902014,0.95851,2608.4,2607.6,0.95878]
[1727710902219,0.95851,2608.4,2607.5,3.2078]
[1727710902527,0.95844,2608.6,2607.8,3.2078]
[1727710902715,0.95844,2608.6,2607.8,4.16649]
[1727710902915,0.38343,2608.2,2608.1,0.38342]
[1727710903116,0.95844,2608.6,2607.8,4.16649]
[1727710903421,3.2078,2608.6,2607.8,3.2078]
[1727710903623,0.38343,2607.9,2607.8,3.59124]
[1727710903926,0.38342,2608.0,2607.8,3.59124]
[1727710904322,0.38341,2608.1,2607.9,0.38342]
[1727710904521,0.38341,2608.0,2607.9,0.38342]
[1727710904923,0.38341,2608.0,2607.8,3.2078]
[1727710905123,0.95843,2608.3,2607.8,3.59123]
[1727710905429,0.38342,2608.0,2607.9,0.38343]
[1727710906022,0.38341,2608.1,2608.0,0.38341]
[1727710906326,2.95,2609.0,2607.8,3.2078]
[1727710906531,0.38333,2608.6,2608.1,0.95848]
[1727710906829,0.38334,2608.5,2608.4,0.38335]
[1727710907028,0.95825,2608.8,2608.3,3.2078]
[1727710907218,0.95825,2608.8,2608.5,0.38333]
[1727710907424,0.38336,2608.4,2608.3,0.38336]
[1727710907623,0.38335,2608.4,2608.3,3.59116]
[1727710907821,0.38335,2608.4,2608.3,7.0414]
[1727710908123,0.38335,2608.4,2608.2,0.38338]
[1727710908124,0.38337,2608.3,2608.2,0.38338]
[1727710908321,0.95833,2608.6,2607.9,0.38342]
[1727710908322,0.38342,2608.0,2607.9,0.38342]
[1727710908528,0.38342,2608.0,2607.8,3.59123]
[1727710909128,0.95841,2608.4,2607.8,3.2078]
[1727710909434,0.9584,2608.4,2607.8,3.2078]
[1727710909733,0.9584,2608.4,2608.0,0.3834]
[1727710909934,0.38339,2608.2,2608.0,0.3834]
[1727710911226,0.9584,2608.4,2607.8,3.2078]
[1727710911536,0.3834,2608.1,2607.9,0.38341]
[1727710911825,0.3834,2608.1,2607.8,3.2078]
[1727710911826,0.38337,2608.3,2608.1,0.38339]
[1727710912024,3.2078,2608.8,2608.1,7.0422]
[1727710912333,0.38338,2608.2,2608.1,3.2078]
[1727710912833,0.38338,2608.3,2608.1,3.59119]
[1727710913130,0.38338,2608.3,2607.5,0.95869]
[1727710913131,0.3834,2608.1,2607.9,0.38342]
[1727710913323,0.38341,2608.1,2607.9,0.38342]
[1727710913726,0.38341,2608.1,2607.8,3.2078]
[1727710913928,2.95,2608.7,2607.8,7.0422]
[1727710914232,0.3834,2608.1,2607.8,3.2078]
[1727710914421,0.38339,2608.2,2608.0,0.38341]
[1727710914621,0.3834,2608.1,2608.0,0.38341]
[1727710915030,0.3834,2608.1,2608.0,4.21781]
[1727710915229,0.3834,2608.1,2608.0,3.8344]
[1727710916132,0.3834,2608.1,2607.8,3.2078]
[1727710916133,0.3834,2608.1,2607.9,0.38343]
[1727710916533,2.95,2608.7,2607.9,3.8344]
[1727710916733,0.38339,2608.2,2608.0,0.38341]
[1727710916927,0.38338,2608.3,2607.9,0.38343]
[1727710917128,0.38339,2608.2,2608.0,0.38341]
[1727710918137,0.38339,2608.2,2607.8,3.2078]
[1727710918138,3.3484,2608.4,2607.8,3.2078]
[1727710918340,0.38339,2608.2,2608.0,0.38341]
[1727710919036,0.95843,2608.3,2607.8,3.2078]
[1727710919340,0.38339,2608.2,2608.0,0.38341]
[1727710919538,0.95843,2608.3,2607.9,0.38341]
[1727710919839,0.38339,2608.2,2608.0,0.38341]
[1727710920634,0.38337,2608.3,2608.1,0.38339]
[1727710920936,2.39,2608.4,2607.8,3.2078]
[1727710921134,2.39,2608.4,2608.2,0.38337]
[1727710921135,0.38336,2608.4,2608.2,0.38337]
[1727710921434,0.95832,2608.6,2608.1,3.2078]
[1727710921639,2.39,2608.2,2607.8,3.2078]
[1727710921837,0.38342,2608.0,2607.8,0.38344]
[1727710922340,3.34847,2608.2,2607.7,3.2078]
[1727710922529,0.38344,2607.8,2607.7,3.2078]
[1727710922933,0.38344,2607.8,2607.4,0.99776317]
[1727710922934,3.34855,2608.0,2607.3,4.58906317]
[1727710923137,2.39,2607.8,2607.3,3.2078]
[1727710923331,2.39,2607.6,2607.3,3.2078]
[1727710923835,0.3835,2607.4,2607.3,3.2078]
[1727710924744,0.3835,2607.4,2606.9,0.99776317]
[1727710924745,0.38354,2607.1,2606.9,0.99776317]
[1727710924944,0.38354,2607.1,2606.8,3.59138]
[1727710924945,0.38356,2607.0,2606.8,4.20556317]
[1727710925242,2.39,2607.2,2606.8,3.59139]
[1727710925645,0.38355,2607.1,2606.8,3.59139]
[1727710925834,0.38354,2607.1,2606.8,3.2078]
[1727710926140,2.39,2607.2,2606.9,0.38356]
[1727710926141,0.38353,2607.2,2606.9,0.38356]
[1727710926441,2.39,2607.6,2606.8,3.2078]
[1727710926641,3.34876,2607.4,2606.9,0.38357]
[1727710926846,0.38354,2607.2,2606.9,0.38357]
[1727710927237,0.38354,2607.2,2606.8,3.2078]
[1727710927435,0.38354,2607.2,2606.9,0.38356]
[1727710927638,0.38352,2607.3,2607.1,0.38354]
[1727710927834,3.34871,2607.6,2606.8,5.5978]
[1727710928039,6.55643,2607.8,2607.2,3.2078]
[1727710928239,0.38346,2607.7,2607.4,0.38349]
[1727710928940,5.5978,2607.8,2607.3,0.3835]
[1727710928941,0.38348,2607.6,2607.3,0.3835]
[1727710929741,0.38348,2607.6,2607.3,0.38351]
[1727710929943,0.38347,2607.7,2607.4,0.38349]
[1727710930346,0.38346,2607.7,2607.2,3.2078]
[1727710930544,2.39,2607.8,2607.2,3.2078]
[1727710930743,0.95848,2608.2,2607.7,0.38345]
[1727710930940,3.2078,2608.3,2607.5,5.5978]
[1727710931149,3.2078,2608.3,2607.4,0.99776317]
[1727710931150,3.2078,2608.4,2607.8,3.2078]
[1727710931341,0.38337,2608.3,2608.0,0.3834]
[1727710931547,0.38334,2608.5,2608.2,0.38338]
[1727710931744,0.38333,2608.6,2608.2,0.38338]
[1727710931942,0.38332,2608.6,2608.2,0.38338]
[1727710932248,2.39,2608.9,2608.1,3.59119]
[1727710932249,0.38329,2608.8,2608.1,3.59119]
[1727710932551,2.39,2608.9,2608.1,3.2078]
[1727710932939,0.38332,2608.7,2608.3,0.38336]
[1727710933251,0.38333,2608.6,2608.2,0.38338]
[1727710933446,0.38333,2608.6,2608.1,3.2078]
[1727710933643,0.38333,2608.6,2608.2,0.38338]
[1727710933948,0.9582,2609.0,2608.1,3.2078]
[1727710934141,0.38331,2608.8,2608.4,0.38335]
[1727710934346,0.38331,2608.8,2608.4,3.59115]
[1727710934543,3.2078,2609.1,2608.4,3.2078]
[1727710934737,0.38329,2608.9,2608.4,3.2078]
[1727710934936,0.38329,2608.9,2608.5,0.38333]
[1727710935138,0.3833,2608.8,2608.5,0.38334]
[1727710935536,3.2078,2609.1,2608.4,3.2078]
[1727710936141,0.95804,2609.4,2608.7,3.2078]
[1727710936142,4.16584,2609.4,2608.7,3.2078]
[1727710936347,3.2078,2609.7,2608.7,3.2078]
[1727710936650,0.38323,2609.3,2609.0,0.38326]
[1727710936850,0.38325,2609.2,2608.8,0.38328]
[1727710937145,0.95798,2609.5,2608.7,3.2078]
[1727710937444,0.38323,2609.3,2609.0,3.59105]
[1727710937650,3.2078,2609.7,2608.7,3.2078]
[1727710937847,3.2078,2609.7,2609.0,3.2078]
[1727710937848,0.38326,2609.1,2609.0,3.2078]
[1727710938151,0.38319,2609.5,2609.1,0.38325]
[1727710938347,0.95795,2609.6,2609.3,0.38321]
[1727710938348,0.38319,2609.6,2609.3,0.38321]
[1727710938664,0.38323,2609.3,2609.0,3.59105]
[1727710938843,0.38323,2609.3,2609.1,0.38325]
[1727710939038,3.2078,2609.7,2609.0,3.2078]
[1727710939350,0.3831,2610.1,2609.7,0.38316]
[1727710939544,0.38314,2609.9,2609.4,3.2078]
[1727710939756,0.38314,2609.9,2609.7,0.38316]
[1727710940046,0.38314,2609.9,2609.4,3.2078]
[1727710940047,0.38311,2610.1,2609.9,0.38313]
[1727710940249,4.16538,2610.6,2609.7,3.2078]
[1727710940444,0.38304,2610.5,2609.7,3.2078]
[1727710940641,0.38314,2609.9,2609.7,3.2078]
[1727710941041,0.95775,2610.2,2609.7,3.2078]
[1727710941240,0.95775,2610.2,2609.7,3.59096]
[1727710941241,0.38313,2610.0,2609.7,3.59096]
[1727710942147,0.38315,2609.8,2609.5,0.38318]
[1727710942353,0.38313,2610.0,2609.7,0.38316]
[1727710942552,0.38313,2610.0,2609.8,0.38315]
[1727710942745,0.38311,2610.1,2609.8,0.38314]
[1727710942944,0.95772,2610.3,2609.7,3.2078]
[1727710943243,0.95772,2610.3,2609.8,0.38314]
[1727710943447,0.95765,2610.4,2609.8,0.38314]
[1727710943750,0.38311,2610.1,2609.8,0.38314]
[1727710943945,0.95762,2610.6,2609.7,3.2078]
[1727710944144,4.16524,2611.0,2610.0,3.2078]
[1727710944341,4.16524,2611.0,2610.1,0.38309]
[1727710944342,0.95754,2610.8,2610.1,0.38309]
[1727710944642,0.95754,2610.8,2610.2,0.38308]
[1727710944643,0.38305,2610.5,2610.2,0.38308]
[1727710944948,0.38302,2610.7,2610.4,0.38306]
[1727710945456,0.38302,2610.7,2610.3,3.2078]
[1727710945642,0.38303,2610.6,2610.3,3.2078]
[1727710945840,0.95747,2610.9,2610.3,3.2078]
[1727710945841,0.38302,2610.7,2610.3,3.2078]
[1727710946045,0.95747,2610.9,2610.3,3.59086]
[1727710946345,0.38305,2610.5,2610.3,3.2078]
[1727710947151,0.95751,2610.8,2610.0,3.2078]
[1727710947349,0.3831,2610.2,2610.0,3.2078]
[1727710947847,0.3831,2610.1,2610.0,3.2078]
[1727710948047,0.95758,2610.6,2610.0,3.2078]
[1727710948048,0.3831,2610.2,2610.0,3.2078]
[1727710948548,3.2078,2610.7,2610.0,3.2078]
[1727710948549,0.3831,2610.1,2610.0,3.2078]
[1727710949149,0.95762,2610.5,2610.0,3.2078]
[1727710949349,0.38309,2610.2,2610.0,3.59091]
[1727710949549,3.2078,2610.7,2610.0,3.2078]
[1727710949855,0.95768,2610.4,2610.0,3.2078]
[1727710950052,0.3831,2610.1,2610.0,3.2078]
[1727710950354,0.38309,2610.2,2610.0,3.59091]
[1727710950554,3.2078,2611.0,2610.0,3.2078]
[1727710950760,0.38301,2610.8,2610.5,0.38303]
[1727710950945,0.95746,2611.0,2610.7,0.383]
[1727710950946,0.38298,2611.0,2610.7,0.383]
[1727710951146,2.95,2611.4,2610.7,3.2078]
[1727710951448,0.95737,2611.2,2610.7,3.2078]
[1727710951653,0.383,2610.8,2610.7,3.2078]
[1727710951850,0.95744,2611.0,2610.4,3.2078]
[1727710952050,4.16527,2610.9,2610.2,3.2078]
[1727710952250,0.38305,2610.5,2610.3,0.38307]
[1727710952949,2.95,2611.1,2610.2,3.2078]
[1727710953152,0.38304,2610.5,2610.3,0.38307]
[1727710953352,0.95752,2610.8,2610.2,3.2078]
[1727710953554,2.95,2611.1,2610.2,3.2078]
[1727710953948,0.38307,2610.3,2610.2,3.2078]
[1727710954459,0.95763,2610.5,2610.2,13.039]
[1727710954460,0.38305,2610.5,2610.2,13.039]
[1727710954647,0.95756,2610.7,2610.2,3.2078]
[1727710954847,0.38305,2610.5,2610.2,3.2078]
[1727710955050,0.38304,2610.6,2610.2,3.2078]
[1727710955250,0.38304,2610.6,2610.4,0.38305]
[1727710955552,0.38305,2610.5,2610.3,0.38307]
[1727710955753,3.2078,2610.9,2610.2,3.59088]
[1727710955959,0.95756,2610.7,2610.2,3.2078]
[1727710956158,0.38303,2610.6,2610.4,0.38305]
[1727710956458,0.38302,2610.7,2610.4,0.38305]
[1727710956648,0.38302,2610.7,2610.6,3.2078]
[1727710957557,0.38303,2610.6,2610.4,0.38305]
[1727710957755,0.38303,2610.6,2610.5,3.2078]
[1727710958148,0.38303,2610.6,2610.4,0.38305]
[1727710958457,0.38302,2610.7,2610.5,0.38304]
[1727710958759,0.38301,2610.8,2610.6,0.38303]
[1727710958955,6.1578,2611.4,2610.6,0.95758]
[1727710958956,3.2078,2611.4,2610.6,0.95758]
[1727710959161,0.38294,2611.2,2610.9,0.38299]
[1727710959361,0.38294,2611.2,2611.1,0.38296]
[1727710959661,0.95727,2611.5,2611.2,0.38294]
[1727710959863,0.38293,2611.3,2611.2,0.38294]
[1727710960154,0.38293,2611.3,2611.1,3.2078]
[1727710960155,0.38292,2611.4,2611.1,3.2078]
[1727710960355,0.95727,2611.5,2611.2,0.38294]
[1727710960660,0.38293,2611.3,2611.2,0.38294]
[1727710960847,0.38293,2611.3,2611.1,3.59075]
[1727710961254,0.38294,2611.2,2611.1,3.59075]
[1727710961456,3.34717,2611.8,2611.1,3.2078]
[1727710961656,0.38294,2611.3,2611.1,3.59075]
[1727710962564,0.38294,2611.3,2611.1,3.2078]
[1727710962768,0.38294,2611.3,2611.2,0.38294]
[1727710963354,0.95726,2611.5,2611.1,3.2078]
[1727710963559,0.38294,2611.3,2611.1,3.59075]
[1727710963760,0.95726,2611.5,2611.1,3.2078]
[1727710963761,0.38294,2611.2,2611.1,3.2078]
[1727710963963,0.95726,2611.5,2610.9,0.38298]
[1727710963964,0.38297,2611.1,2610.9,0.38298]
[1727710964167,0.38297,2611.1,2610.8,3.2078]
[1727710964466,0.38297,2611.1,2610.8,3.59079]
[1727710964670,0.38297,2611.1,2610.9,0.38298]
[1727710965163,0.38293,2611.3,2611.0,3.8296]
[1727710965466,0.38293,2611.3,2611.1,3.59075]
[1727710965664,0.38293,2611.3,2611.1,3.2078]
[1727710965864,0.38293,2611.3,2611.2,3.8296]
[1727710966165,0.95726,2611.5,2611.2,3.8296]
[1727710966166,0.3829,2611.5,2611.2,3.8296]
[1727710966376,0.38289,2611.6,2611.4,0.3829]
[1727710966669,0.38289,2611.6,2611.1,3.2078]
[1727710966670,0.38292,2611.4,2611.2,0.38294]
[1727710966974,0.95722,2611.6,2611.2,0.38294]
[1727710967163,0.38292,2611.4,2611.2,0.38294]
[1727710967358,0.38292,2611.4,2611.2,0.38293]
[1727710967359,0.38291,2611.4,2611.2,0.38293]
[1727710967864,0.38291,2611.4,2611.2,4.21253]
[1727710968067,3.2078,2611.9,2611.1,3.2078]
[1727710968373,4.854,2612.2,2611.1,3.2078]
[1727710968374,4.16504,2611.6,2611.1,3.2078]
[1727710968557,0.9573,2611.4,2611.1,3.2078]
[1727710968761,0.38294,2611.2,2611.1,3.2078]
[1727710968962,0.38293,2611.3,2611.2,0.38294]
[1727710969372,0.38292,2611.4,2611.3,0.38292]
[1727710969673,3.2078,2612.0,2611.4,0.38291]
[1727710969674,4.16489,2612.0,2611.4,0.38291]
[1727710969865,0.3829,2611.5,2611.4,0.38291]
[1727710970259,3.2078,2612.0,2611.2,0.38293]
[1727710970461,0.38294,2611.3,2611.1,3.59075]
[1727710970661,3.2078,2612.0,2611.1,3.2078]
[1727710970662,0.38294,2611.2,2611.1,3.2078]
[1727710971073,0.38294,2611.2,2611.1,7.0374]
[1727710973071,0.38294,2611.2,2611.1,3.2078]
[1727710974677,0.95732,2611.4,2611.1,7.42035]
[1727710974678,0.38294,2611.3,2611.1,7.42035]
[1727710974865,0.38292,2611.4,2611.2,0.38294]
[1727710975068,0.38291,2611.5,2611.3,0.38292]
[1727710975266,0.38292,2611.4,2611.1,3.2078]
[1727710975467,0.38292,2611.4,2611.2,0.38293]
[1727710975865,0.38292,2611.4,2611.1,3.2078]
[1727710976070,0.38291,2611.4,2611.1,3.2078]
[1727710976373,0.38292,2611.4,2611.1,3.2078]
[1727710976566,0.38291,2611.5,2611.3,0.38292]
[1727710976768,0.38291,2611.4,2611.3,0.38292]
[1727710976967,0.38291,2611.4,2611.1,3.2078]
[1727710976968,0.38294,2611.2,2611.1,3.2078]
[1727710977370,0.38294,2611.2,2611.1,7.0374]
[1727710977770,0.38294,2611.2,2611.1,3.2078]
[1727710980374,0.383,2610.8,2610.7,3.2078]
[1727710980579,0.383,2610.8,2610.7,3.59081]
[1727710980773,0.38299,2610.9,2610.8,0.38299]
[1727710981377,0.38297,2611.0,2610.9,0.38298]
[1727710981576,0.95727,2611.5,2611.0,0.38296]
[1727710981770,0.38296,2611.1,2611.0,3.59076]
[1727710981974,0.38296,2611.1,2611.0,3.2078]
[1727710982171,0.38296,2611.1,2611.0,3.59077]
[1727710982369,0.95734,2611.3,2611.0,3.59077]
[1727710982370,0.95734,2611.3,2611.0,3.2078]
[1727710982583,0.38296,2611.1,2611.0,3.59077]
[1727710983179,0.38296,2611.1,2611.0,3.2078]
[1727710983382,0.38296,2611.2,2611.1,0.38295]
[1727710983580,0.38296,2611.1,2611.0,3.59076]
[1727710983986,0.38296,2611.1,2611.0,3.2078]
[1727710984281,0.38296,2611.1,2611.0,3.59077]
[1727710986679,0.95734,2611.3,2611.0,7.0374]
[1727710986881,0.38295,2611.2,2611.1,0.38295]
[1727710987888,0.95734,2611.3,2611.0,3.2078]
[1727710988080,0.38296,2611.1,2611.0,3.59076]
[1727710989588,0.38295,2611.2,2611.1,0.38294]
[1727710989978,0.38294,2611.2,2611.1,0.38294]
[1727710990277,3.2078,2611.9,2611.0,5.5978]
[1727710990484,0.38291,2611.5,2611.4,0.3829]
[1727710991084,4.16494,2611.9,2611.3,5.5978]
[1727710991290,4.16494,2611.9,2611.2,0.95736]
[1727710991291,0.95701,2612.2,2611.7,2.39]
[1727710991481,0.38283,2612.0,2611.9,2.77283]
[1727710991681,0.38281,2612.1,2612.0,0.38281]
[1727710992289,0.38281,2612.1,2612.0,4.21161]
[1727710992589,0.3828,2612.2,2612.1,0.38281]
[1727710992781,0.3828,2612.2,2612.1,2.77281]
[1727710993187,0.3828,2612.2,2612.1,2.39]
[1727710993394,0.3828,2612.2,2612.1,2.77281]
[1727710993889,0.38279,2612.2,2612.1,2.7728]
[1727710994195,0.38279,2612.2,2612.1,2.77281]
[1727710994687,3.2078,2612.5,2612.1,2.77281]
[1727710994688,0.38279,2612.3,2612.2,0.38278]
[1727710994889,4.16469,2612.5,2612.3,0.38278]
[1727710994890,0.38278,2612.4,2612.3,0.38278]
[1727710995093,0.38279,2612.3,2612.2,0.38279]
[1727710995489,0.38277,2612.4,2612.3,0.38277]
[1727710995693,0.38279,2612.2,2612.1,2.77281]
[1727710995990,0.38282,2612.1,2612.0,2.77282]
[1727710996193,0.38281,2612.2,2612.1,0.38281]
[1727710996488,0.38281,2612.2,2612.0,2.39]
[1727710996489,4.16471,2612.5,2612.0,2.39]
[1727710996791,0.38279,2612.3,2612.2,2.77279]
[1727710997384,3.2078,2612.5,2612.2,6.218]
[1727710997587,0.38278,2612.4,2612.3,0.38278]
[1727710997786,4.16459,2612.8,2612.3,3.828]
[1727710997787,0.95679,2612.8,2612.3,3.828]
[1727710997983,9.7698,2613.1,2612.5,0.38274]
[1727710997984,0.38275,2612.6,2612.5,0.38274]
[1727710998698,0.38275,2612.5,2612.4,2.77276]
[1727710998890,0.38275,2612.5,2612.4,2.39]
[1727710999393,0.95682,2612.7,2612.4,0.38277]
[1727710999589,0.38276,2612.5,2612.4,0.38277]
[1727711000282,0.95674,2612.9,2612.5,0.38275]
[1727711000283,0.38274,2612.6,2612.5,0.38275]
[1727711000691,0.38274,2612.6,2612.5,3.59055]